bitfinex/quotes_ETHUSD_20250930
["timestamp","ask_amount","ask_price","bid_price","bid_amount"]
[1759266905290,0.001,4188.1,4185.7,2.4]
[1759266905461,0.001,4188.1,4187.4,2.38810902]
[1759266905661,0.001,4188.1,4187.5,2.833]
[1759266905889,0.001,4188.1,4187.5,5.8814597]
[1759266906462,0.001,4188.1,4187.5,6.95702829]
[1759266907580,0.001,4188.1,4187.5,9.67655129]
[1759266907780,0.001,4188.1,4187.5,6.95702829]
[1759266908208,0.001,4188.1,4187.5,9.64291459]
[1759266908388,0.001,4188.1,4187.5,9.43902829]
[1759266908798,0.001,4188.1,4187.5,11.83902829]
[1759266909007,0.001,4188.1,4187.5,11.95822829]
[1759266909989,0.001,4188.1,4187.5,7.17216859]
[1759266910185,0.001,4188.1,4187.5,9.56022829]
[1759266910520,0.001,4188.1,4187.5,7.17216859]
[1759266910818,0.001,4188.1,4187.5,6.74176859]
[1759266911183,0.001,4188.1,4187.5,9.12982829]
[1759266911592,0.6655,4187.6,4187.5,2.832]
[1759266911792,3.05350574,4187.6,4187.5,2.832]
[1759266912327,3.84550574,4187.6,4187.5,2.832]
[1759266912920,3.84550574,4187.6,4185.6,0.95783697]
[1759266912921,2.38873948,4186.4,4186.1,2.484]
[1759266913130,3.192,4187.2,4186.2,2.838]
[1759266913131,3.05324423,4186.3,4186.2,2.838]
[1759266913302,3.05324423,4186.3,4185.2,0.6742]
[1759266913303,2.38903949,4185.8,4185.5,2.484]
[1759266913488,2.38908665,4185.7,4185.6,2.838]
[1759266913685,3.05358665,4185.7,4185.6,2.838]
[1759266914139,2.38836521,4187.0,4185.6,2.838]
[1759266914140,0.2334,4186.9,4185.6,3.5122]
[1759266914302,0.12225174,4186.8,4185.2,0.2331]
[1759266914512,2.38915895,4185.6,4185.3,2.84]
[1759266914839,2.38908933,4185.7,4185.3,2.84]
[1759266915039,2.82025361,4185.6,4185.3,2.84]
[1759266915245,0.4311,4185.6,4185.3,2.84]
[1759266915538,2.38898856,4185.9,4185.3,3.8135]
[1759266915842,2.4,4186.4,4185.4,0.2331]
[1759266916027,0.64177315,4189.9,4185.4,0.2331]
[1759266916028,0.6645,4187.3,4185.8,2.38900417]
[1759266916225,0.6645,4187.2,4185.9,3.0731]
[1759266916426,2.38855915,4186.7,4186.0,0.02388915]
[1759266916627,0.6645,4187.1,4185.9,3.0731]
[1759266916628,0.6645,4187.1,4185.9,3.82151]
[1759266916934,2.3884243,4186.9,4186.1,2.38883777]
[1759266917140,2.38812261,4187.4,4186.2,5.46188548]
[1759266917318,2.38869738,4186.4,4185.5,0.2331]
[1759266917524,2.38894102,4186.0,4185.6,2.846]
[1759266917703,2.38894102,4186.0,4185.3,3.0164]
[1759266917704,0.6645,4185.9,4185.3,0.5324]
[1759266918015,0.6645,4185.9,4184.5,0.4411]
[1759266918016,0.6645,4185.9,4184.8,0.2331]
[1759266918223,0.6645,4185.9,4184.5,0.4411]
[1759266918224,2.38939342,4185.2,4185.0,2.484]
[1759266918550,2.38939342,4185.2,4185.1,2.847]
[1759266919411,3.05389342,4185.2,4185.1,2.847]
[1759266919740,4.78914373,4185.6,4185.1,2.847]
[1759266919931,2.38920118,4185.5,4185.1,2.847]
[1759266920107,2.38925789,4185.4,4185.1,2.847]
[1759266920508,2.38937207,4185.2,4185.1,2.847]
[1759266920904,0.6645,4186.2,4185.1,3.3801]
[1759266921131,2.38903893,4185.8,4185.1,3.3801]
[1759266921336,2.38920906,4185.5,4185.1,3.3801]
[1759266921846,0.1192,4185.2,4185.1,3.6132]
[1759266922387,0.1192,4185.4,4185.1,4.0543]
[1759266922689,2.38863012,4186.5,4185.2,1.57890341]
[1759266922873,0.1192,4185.7,4185.3,2.622368]
[1759266923045,0.1192,4185.7,4185.4,5.23125276]
[1759266923245,0.1192,4185.7,4185.5,0.61359562]
[1759266923446,0.1192,4185.7,4185.5,0.84669562]
[1759266924885,0.1192,4185.7,4185.6,0.2331]
[1759266927196,0.792,4187.1,4185.7,2.38908665]
[1759266927353,0.1192,4186.0,4185.8,3.09609029]
[1759266927552,0.1192,4186.0,4185.8,3.25344859]
[1759266928687,0.1192,4186.0,4185.9,2.3889725]
[1759266928893,0.1192,4186.0,4185.9,3.10286222]
[1759266929298,2.38846584,4186.8,4185.9,0.71388972]
[1759266929506,0.1192,4186.3,4186.0,0.2352]
[1759266929706,0.1192,4186.3,4186.1,4.17016704]
[1759266930015,0.1192,4186.3,4186.2,2.38880129]
[1759266930181,0.2484,4187.1,4186.2,0.69]
[1759266930182,2.38841716,4186.9,4186.2,0.69]
[1759266930389,0.1192,4186.6,4186.2,0.2352]
[1759266930600,0.1192,4186.6,4186.3,0.6104276]
[1759266930804,1.70718184,4190.6,4186.3,0.6104276]
[1759266930805,2.38816592,4187.4,4186.4,3.09308687]
[1759266931110,0.1192,4186.8,4186.7,2.38850516]
[1759266931313,0.1192,4186.8,4186.7,5.24639032]
[1759266931517,0.6933,4187.7,4186.7,3.524]
[1759266931518,0.1192,4187.2,4186.7,3.524]
[1759266931720,0.1192,4187.2,4186.8,0.69]
[1759266932021,0.1192,4187.2,4187.1,2.38828783]
[1759266932226,0.1192,4187.2,4187.1,5.22228783]
[1759266932380,0.1192,4187.2,4187.1,5.45748783]
[1759266933602,0.1192,4187.2,4187.1,5.91228783]
[1759266933808,0.1192,4187.5,4187.2,2.38821405]
[1759266934209,0.1192,4187.5,4187.3,2.62336812]
[1759266934471,0.1192,4187.5,4187.4,2.832]
[1759266934677,0.1192,4187.5,4187.4,5.22011673]
[1759266934877,0.001,4187.7,4187.5,2.3880597]
[1759266935079,0.1202,4187.7,4187.5,3.0780597]
[1759266935294,0.1202,4187.7,4187.5,0.2352]
[1759266935728,0.1202,4187.7,4187.5,2.6232597]
[1759266936074,0.1202,4187.7,4187.5,0.2352]
[1759266936280,0.1202,4187.7,4187.4,2.832]
[1759266938212,0.1202,4187.7,4187.5,0.2352]
[1759266938724,0.1202,4187.7,4187.5,2.6232597]
[1759266939082,0.1202,4187.7,4187.5,0.2352]
[1759266939519,0.1202,4187.7,4187.5,2.6232597]
[1759266940027,0.1202,4187.7,4187.5,0.2352]
[1759266940528,0.1202,4187.7,4187.4,3.26968933]
[1759266940729,0.1202,4187.7,4187.5,2.3880597]
[1759266940883,0.1202,4187.7,4187.4,3.26968933]
[1759266940884,0.1202,4187.7,4187.4,5.8929974]
[1759266941601,0.1202,4187.7,4187.5,2.3880597]
[1759266942124,0.1202,4187.7,4187.5,2.6323597]
[1759266942282,0.1202,4187.7,4187.5,3.53074174]
[1759266942684,0.1202,4187.7,4187.5,3.99184174]
[1759266942685,0.001,4187.7,4187.5,3.99184174]
[1759266942999,0.001,4187.7,4187.5,4.11104174]
[1759266943826,0.001,4187.7,4187.5,4.08716115]
[1759266944020,0.001,4187.7,4187.5,4.11104174]
[1759266944784,0.001,4187.7,4187.5,4.08716115]
[1759266946917,0.001,4187.7,4187.5,6.48716115]
[1759266947586,0.001,4187.7,4187.5,7.12034629]
[1759266947787,0.001,4187.7,4187.5,9.93834629]
[1759266948191,0.001,4187.7,4187.5,9.30516115]
[1759266948608,0.001,4187.7,4187.5,9.93724527]
[1759266948814,0.001,4187.7,4187.5,9.30516115]
[1759266949017,0.001,4187.7,4187.5,14.78640887]
[1759266949240,0.001,4187.7,4187.5,13.94011815]
[1759266949451,1e-08,4187.6,4187.5,14.17901815]
[1759266949944,1e-08,4187.6,4187.5,26.17652715]
[1759266950110,1e-08,4187.6,4187.5,19.78273215]
[1759266950314,1e-08,4187.6,4187.5,15.42401815]
[1759266950921,1e-08,4187.6,4187.5,18.69271615]
[1759266951122,1e-08,4187.6,4187.5,17.48324815]
[1759266951649,0.001,4187.7,4187.6,5.58000267]
[1759266951834,0.001,4187.7,4187.6,28.5999791]
[1759266952070,0.001,4187.7,4187.6,24.8263071]
[1759266952216,0.001,4187.7,4187.6,25.61351153]
[1759266952542,0.001,4187.7,4187.6,21.50008653]
[1759266952952,0.001,4187.7,4187.6,25.79312653]
[1759266953156,0.001,4187.7,4187.6,23.40610353]
[1759266953323,0.001,4187.7,4187.6,21.7173121]
[1759266953927,0.001,4187.7,4187.6,8.9216081]
[1759266954124,0.001,4187.7,4187.6,25.39464853]
[1759266954339,0.001,4187.7,4187.6,23.7058571]
[1759266954516,0.001,4187.7,4187.6,22.5907381]
[1759266955018,0.001,4187.7,4187.6,23.8113501]
[1759266955235,0.001,4187.7,4187.6,23.2631941]
[1759266955416,0.001,4187.7,4187.6,21.4984861]
[1759266956043,0.001,4187.7,4187.6,24.0653411]
[1759266956318,0.001,4187.7,4187.6,23.8289801]
[1759266956532,0.001,4187.7,4187.6,22.9295191]
[1759266956932,0.001,4187.7,4187.6,24.61831053]
[1759266957229,0.001,4187.7,4187.6,25.98908953]
[1759266957446,0.001,4187.7,4187.6,24.3002981]
[1759266957831,0.001,4187.7,4187.6,23.7157601]
[1759266958154,0.001,4187.7,4187.6,24.2173101]
[1759266958360,0.001,4187.7,4187.6,25.42235653]
[1759266959161,0.001,4187.7,4187.6,25.52391053]
[1759266959338,0.001,4187.7,4187.6,25.22302653]
[1759266959859,0.001,4187.7,4187.6,15.5587901]
[1759266960062,0.001,4187.7,4187.6,22.0372311]
[1759266960662,0.001,4188.5,4188.4,5.81844655]
[1759266960827,0.001,4188.5,4188.4,39.21329121]
[1759266961028,0.001,4188.5,4188.4,14.33981021]
[1759266961328,0.001,4188.5,4188.4,13.07266421]
[1759266962150,0.001,4188.5,4188.4,17.66554021]
[1759266962775,0.001,4188.5,4188.4,15.81718221]
[1759266962926,0.001,4188.5,4188.4,16.2908233]
[1759266963130,0.001,4188.5,4188.4,19.1298233]
[1759266963629,0.696,4189.8,4189.7,2.38680573]
[1759266963832,0.696,4189.8,4189.7,5.19780573]
[1759266964528,2.38576143,4191.6,4190.6,2.38629239]
[1759266964864,1.28038638,4193.9,4191.3,2.38588329]
[1759266964865,0.71629902,4192.9,4191.3,2.38588329]
[1759266965050,0.2276,4191.5,4191.4,2.83485837]
[1759266965252,2.4,4191.4,4189.1,2.482]
[1759266965564,2.38565064,4191.8,4189.7,0.84250217]
[1759266965565,2.3863582,4190.5,4189.7,0.84250217]
[1759266965746,0.4684,4190.4,4189.1,3.32450217]
[1759266966060,0.4684,4190.3,4189.1,4.882]
[1759266966238,0.4684,4190.2,4189.7,2.38676949]
[1759266966559,0.4684,4190.1,4189.1,5.72450217]
[1759266966748,0.4684,4190.0,4189.9,2.3866918]
[1759266966952,0.3096,4191.3,4189.9,2.829]
[1759266966953,2.38629192,4190.7,4189.9,2.829]
[1759266967149,0.792,4191.7,4190.0,2.38663457]
[1759266967150,0.4684,4190.6,4190.0,2.38663457]
[1759266967357,0.4684,4190.5,4190.1,2.829]
[1759266967535,2.38624431,4190.7,4190.2,2.829]
[1759266967868,0.4684,4190.6,4190.2,2.829]
[1759266968164,0.4684,4190.5,4190.2,2.829]
[1759266968365,0.4684,4190.4,4190.2,2.829]
[1759266968571,0.4684,4190.3,4190.2,2.829]
[1759266969335,2.85486397,4190.3,4190.2,2.829]
[1759266969565,0.4684,4190.3,4190.2,2.829]
[1759266969763,0.5876,4190.3,4190.2,2.829]
[1759266969966,2.97406397,4190.3,4190.2,2.829]
[1759266970434,2.97406397,4190.3,4190.2,5.308]
[1759266971364,0.792,4189.2,4188.9,0.84250217]
[1759266971564,2.38743255,4188.6,4187.6,0.002]
[1759266971765,2.38758851,4188.4,4187.7,2.84]
[1759266971974,2.38762911,4188.3,4187.7,2.84]
[1759266972178,2.4,4189.1,4187.8,5.322]
[1759266972367,2.38749883,4188.5,4187.8,5.322]
[1759266972685,2.70641455,4189.0,4187.8,5.322]
[1759266972686,2.3877179,4188.1,4187.8,5.322]
[1759266973089,2.3877749,4188.0,4187.8,5.322]
[1759266973494,2.38782715,4188.0,4187.8,5.322]
[1759266973868,0.3192,4189.0,4187.6,0.002]
[1759266973869,3.192,4188.8,4187.6,0.002]
[1759266974060,2.38777459,4188.0,4187.9,2.482]
[1759266975761,0.439985,4188.7,4187.9,2.482]
[1759266975959,2.38771758,4188.1,4188.0,2.837]
[1759266976155,2.38771758,4188.1,4187.6,0.002]
[1759266976156,0.792,4188.5,4187.6,0.002]
[1759266976379,2.38788862,4187.8,4187.7,1.36]
[1759266980816,2.38788862,4187.8,4187.6,0.002]
[1759266981029,3.18023079,4187.2,4187.1,1e-08]
[1759266981179,3.18045896,4186.8,4186.7,0.002]
[1759266981521,3.29965896,4186.8,4186.7,0.002]
[1759266981876,5.69965896,4186.8,4186.7,0.002]
[1759266982609,5.69965896,4186.8,4186.7,2.863]
[1759266983041,5.69965896,4186.8,4186.7,0.002]
[1759266983314,6.03964908,4186.8,4186.7,2.863]
[1759266986062,4.90765896,4186.8,4186.7,2.863]
[1759266986959,2.5192,4186.8,4186.7,2.863]
[1759266987136,4.90765896,4186.8,4186.7,2.863]
[1759266987768,0.1192,4186.8,4186.7,2.863]
[1759266987977,2.50765896,4186.8,4186.7,2.863]
[1759266988174,0.1192,4186.8,4186.7,2.863]
[1759266988357,2.50765896,4186.8,4186.7,2.863]
[1759266988667,0.1192,4186.8,4186.7,2.863]
[1759266989042,0.1192,4186.8,4186.7,3.0979]
[1759266989353,0.1192,4186.8,4186.7,3.5588]
[1759266990340,0.1192,4186.8,4186.7,3.91488]
[1759266991582,0.001,4187.1,4186.7,3.91488]
[1759266991583,0.001,4187.1,4186.8,2.38842466]
[1759266991751,0.001,4187.1,4186.9,2.41228354]
[1759266991752,0.1192,4187.0,4186.9,2.41228354]
[1759266991951,0.1192,4187.0,4186.9,3.08419953]
[1759266992370,0.001,4187.1,4187.0,2.38834487]
[1759266992576,0.001,4187.1,4187.0,3.95330731]
[1759266992743,0.001,4187.1,4187.0,3.97719075]
[1759266992938,0.001,4187.1,4187.0,3.95330731]
[1759266993144,0.001,4187.1,4187.0,3.97719075]
[1759266993841,0.001,4187.1,4187.0,3.95330731]
[1759266994283,0.001,4187.1,4187.0,6.35330731]
[1759266995267,0.001,4187.1,4187.0,6.84253702]
[1759266995767,0.001,4187.1,4187.0,9.69053702]
[1759266996079,0.001,4187.1,4187.0,12.04592402]
[1759266996379,0.001,4187.1,4187.0,9.69053702]
[1759266997468,0.001,4187.1,4187.0,13.03372702]
[1759266997867,0.001,4187.1,4187.0,9.69053702]
[1759266998856,0.001,4187.1,4187.0,6.84253702]
[1759266999055,0.001,4187.1,4187.0,8.81640731]
[1759266999264,0.001,4187.1,4187.0,7.94724487]
[1759267000292,10.001,4187.1,4187.0,8.40814487]
[1759267000962,0.792,4186.9,4186.7,0.002]
[1759267001165,10.001,4187.1,4186.8,2.841]
[1759267001377,1.0001,4187.0,4186.8,2.841]
[1759267001583,2.38840192,4186.9,4186.8,2.841]
[1759267001987,1.0001,4187.0,4186.8,2.841]
[1759267002189,2.38840192,4186.9,4186.8,2.841]
[1759267003301,2.38840192,4186.9,4186.7,0.002]
[1759267003302,2.38845896,4186.8,4186.7,0.002]
[1759267003468,2.38845896,4186.8,4186.7,5.34]
[1759267003891,2.38840606,4186.9,4186.7,5.34]
[1759267004090,1.0001,4187.0,4186.7,5.34]
[1759267004605,2.38845896,4186.8,4186.7,5.34]
[1759267006067,10.001,4187.1,4186.7,0.002]
[1759267006265,3.18045896,4186.8,4186.7,0.002]
[1759267006464,3.18045896,4186.8,4186.7,2.859]
[1759267006800,3.18045896,4186.8,4186.7,0.002]
[1759267006974,3.18045896,4186.8,4186.7,2.859]
[1759267006975,5.58045896,4186.8,4186.7,2.859]
[1759267009294,5.58045896,4186.8,4186.7,0.002]
[1759267009590,5.58045896,4186.8,4186.7,2.856]
[1759267010696,15.58045896,4186.8,4186.7,2.856]
[1759267011096,15.69965896,4186.8,4186.7,2.856]
[1759267012474,15.69965896,4186.8,4186.7,0.002]
[1759267012686,15.69965896,4186.8,4186.7,2.852]
[1759267015495,15.69965896,4186.8,4186.7,2.848]
[1759267017110,13.18045896,4186.8,4186.7,2.846]
[1759267017291,15.58045896,4186.8,4186.7,2.846]
[1759267017486,15.58045896,4186.8,4186.2,0.002]
[1759267017487,3.18074423,4186.3,4186.2,0.002]
[1759267018709,3.18074423,4186.3,4186.2,2.846]
[1759267019910,3.18074423,4186.3,4186.2,2.845]
[1759267020803,3.18074423,4186.3,4186.2,0.002]
[1759267021007,3.18074423,4186.3,4186.2,2.844]
[1759267021200,3.73768579,4186.3,4186.2,2.844]
[1759267024311,3.73768579,4186.3,4186.2,0.002]
[1759267024508,2.38880129,4186.2,4186.1,1e-08]
[1759267024709,0.792,4185.9,4185.7,0.002]
[1759267025006,3.57826404,4185.9,4185.7,0.002]
[1759267025709,5.97826404,4185.9,4185.7,0.002]
[1759267026408,5.97826404,4185.9,4185.8,2.837]
[1759267027092,6.09746404,4185.9,4185.8,2.837]
[1759267028429,6.09746404,4185.9,4185.8,2.834]
[1759267028987,2.90546404,4185.9,4185.8,3.4945]
[1759267029202,2.5081725,4185.9,4185.8,3.4945]
[1759267031130,0.1192,4185.9,4185.8,3.4945]
[1759267035911,0.1192,4186.0,4185.8,5.90741986]
[1759267036238,0.1192,4186.0,4185.9,0.7082]
[1759267036624,10.0,4186.8,4185.9,3.76518593]
[1759267036810,10.0,4186.8,4186.0,0.63457578]
[1759267037140,10.0,4186.8,4186.1,3.5322]
[1759267037337,12.38849818,4186.8,4186.2,0.7082]
[1759267037536,10.0,4186.8,4186.3,0.7082]
[1759267037736,12.38846799,4186.8,4186.4,3.5332]
[1759267037911,10.0,4186.8,4186.4,2.825]
[1759267038113,10.0,4186.8,4186.5,0.7082]
[1759267038644,10.0,4186.8,4186.6,0.7082]
[1759267038818,10.0,4186.8,4186.5,2.74193825]
[1759267038819,10.0,4186.8,4186.7,3.5065]
[1759267039345,10.0,4186.8,4186.7,5.89501601]
[1759267040520,10.0,4186.8,4186.7,8.29501601]
[1759267041042,10.001,4186.8,4186.7,8.29501601]
[1759267043054,10.001,4186.8,4186.7,9.46216986]
[1759267045010,10.001,4186.8,4186.7,10.09674564]
[1759267045411,10.001,4186.8,4186.7,12.16770786]
[1759267045626,10.001,4186.8,4186.7,12.57344515]
[1759267046941,10.001,4186.8,4186.7,12.69264515]
[1759267047138,10.001,4186.8,4186.7,12.05836986]
[1759267050655,10.001,4186.8,4186.7,16.28836986]
[1759267051162,10.001,4186.8,4186.7,4.883]
[1759267051371,10.001,4186.8,4186.0,0.63427529]
[1759267051652,10.001,4186.8,4185.8,0.002]
[1759267051653,2.38871603,4186.4,4185.8,0.002]
[1759267051948,2.62761798,4186.3,4186.0,4.883]
[1759267052140,2.38874638,4186.3,4186.1,2.814]
[1759267052734,2.38869684,4186.4,4186.1,2.814]
[1759267053130,2.38863568,4186.5,4186.1,2.814]
[1759267053422,2.38873838,4186.4,4186.1,2.814]
[1759267053750,10.001,4186.8,4186.1,2.814]
[1759267053751,2.38856113,4186.7,4186.1,2.814]
[1759267053929,2.38856113,4186.7,4185.8,0.002]
[1759267053930,1.0001,4186.7,4185.8,0.002]
[1759267054130,2.38882778,4186.2,4185.9,2.813]
[1759267055242,2.38886612,4186.1,4185.9,2.813]
[1759267055853,2.38881062,4186.2,4185.9,2.813]
[1759267057527,2.38874903,4186.3,4185.9,2.813]
[1759267057729,2.38889934,4186.1,4185.9,2.813]
[1759267058156,2.38874327,4186.4,4185.9,2.813]
[1759267058459,2.68371823,4186.6,4185.9,2.813]
[1759267058632,2.38873388,4186.4,4185.9,2.813]
[1759267058833,2.38880557,4186.2,4185.9,2.813]
[1759267059731,2.38887458,4186.1,4185.9,2.813]
[1759267060058,0.29512873,4186.6,4185.9,2.813]
[1759267060059,2.38881146,4186.2,4185.9,2.813]
[1759267060463,2.38886168,4186.1,4185.9,2.813]
[1759267061169,0.1192,4186.0,4185.9,2.813]
[1759267063830,0.1192,4186.0,4185.9,3.5213]
[1759267064334,0.1192,4186.0,4185.9,0.2448]
[1759267064534,0.1192,4186.0,4185.9,5.287]
[1759267065342,0.1192,4186.0,4185.8,0.002]
[1759267065640,2.50811543,4186.0,4185.9,5.286]
[1759267066060,2.50811543,4186.0,4185.8,0.002]
[1759267066061,2.3889725,4185.9,4185.8,0.002]
[1759267066256,2.3889725,4185.9,4185.8,2.803]
[1759267068071,7.06748955,4185.9,4185.8,0.002]
[1759267068274,3.1809725,4185.9,4185.8,2.803]
[1759267068460,3.73796636,4185.9,4185.8,2.803]
[1759267069643,2.94596636,4185.9,4185.8,2.803]
[1759267069868,2.3889725,4185.9,4185.8,2.803]
[1759267070844,2.3889725,4185.9,4185.8,0.002]
[1759267070845,3.1809725,4185.9,4185.8,0.002]
[1759267071048,3.1809725,4185.9,4185.8,2.802]
[1759267071245,3.18102957,4185.8,4185.7,0.002]
[1759267072462,3.18102957,4185.8,4185.7,2.759]
[1759267072799,3.9769195,4185.8,4185.7,2.759]
[1759267076500,3.9769195,4185.8,4184.9,0.002]
[1759267076501,0.792,4185.7,4184.9,0.002]
[1759267076686,3.1849195,4185.8,4184.9,0.002]
[1759267076687,3.18137207,4185.2,4184.9,0.002]
[1759267077001,3.18137207,4185.2,4185.1,2.813]
[1759267077168,3.68071087,4185.2,4185.1,2.813]
[1759267077770,2.38942916,4185.1,4184.9,0.002]
[1759267078216,3.30062916,4185.1,4184.9,0.002]
[1759267079202,3.30062916,4185.1,4185.0,2.768]
[1759267081412,3.181886,4184.3,4183.5,0.7083]
[1759267081619,3.181886,4184.3,4184.2,2.81]
[1759267082412,3.181886,4184.3,4184.2,0.002]
[1759267082710,3.181886,4184.3,4184.2,2.81]
[1759267084800,2.39022874,4183.7,4183.6,0.2448]
[1759267085204,2.39022874,4183.7,4183.6,0.7083]
[1759267085984,2.39022874,4183.7,4183.6,3.5133]
[1759267086189,0.792,4184.7,4183.6,3.5133]
[1759267086389,0.792,4184.4,4183.7,0.7083]
[1759267086685,2.39022874,4183.7,4183.6,2.805]
[1759267087097,2.39022874,4183.7,4183.6,3.5133]
[1759267088114,0.792,4184.5,4183.6,3.5133]
[1759267088424,2.39016462,4183.9,4183.7,0.7083]
[1759267088731,2.39016462,4183.9,4183.8,0.7083]
[1759267088925,0.792,4184.7,4183.8,0.7083]
[1759267089126,0.792,4185.4,4183.6,2.805]
[1759267089333,2.39005736,4184.0,4183.9,0.7083]
[1759267089707,2.38998274,4184.2,4183.9,0.7083]
[1759267089903,0.792,4184.8,4184.0,0.7083]
[1759267090107,0.792,4184.8,4184.1,0.7083]
[1759267090108,2.38960045,4184.8,4184.1,0.7083]
[1759267090315,2.389886,4184.3,4184.2,3.0458]
[1759267090512,2.389886,4184.3,4184.2,3.5093]
[1759267091140,2.39004548,4185.8,4184.2,3.5093]
[1759267091141,0.792,4185.1,4184.2,3.5093]
[1759267091308,2.38967142,4184.7,4184.3,0.721]
[1759267091515,0.1192,4184.4,4184.2,2.801]
[1759267091997,0.1192,4184.4,4184.3,0.721]
[1759267092532,2.38909088,4185.7,4184.6,2.38967221]
[1759267092746,0.001,4185.8,4184.3,1.09709886]
[1759267092747,2.38941883,4185.2,4184.7,2.8]
[1759267092927,2.38908665,4185.7,4184.8,0.744896]
[1759267093242,0.1192,4185.0,4184.9,0.721]
[1759267093440,0.1192,4185.0,4184.9,3.11054335]
[1759267093608,2.38915372,4185.6,4184.9,3.70159768]
[1759267093800,0.1192,4185.2,4185.0,0.721]
[1759267094128,0.1192,4185.2,4185.1,3.121]
[1759267094309,0.1192,4185.2,4185.1,0.721]
[1759267095337,0.1192,4185.2,4185.1,3.13432345]
[1759267095640,0.001,4185.8,4185.2,2.4]
[1759267095807,0.001,4185.8,4185.3,2.798]
[1759267095808,0.1192,4185.7,4185.3,2.798]
[1759267095996,2.38933584,4185.3,4184.8,0.63427529]
[1759267096196,0.001,4185.8,4185.0,2.4]
[1759267096410,0.001,4185.8,4185.1,2.802]
[1759267096624,0.001,4185.8,4185.2,0.59125282]
[1759267096625,2.38912652,4185.7,4185.2,0.59125282]
[1759267096931,0.001,4185.8,4185.2,0.59125282]
[1759267096932,2.39004913,4185.8,4185.3,0.721]
[1759267097115,2.3891942,4185.6,4185.4,0.721]
[1759267097328,2.3891942,4185.6,4185.2,0.59125282]
[1759267097329,2.38914373,4185.6,4185.5,0.721]
[1759267097496,2.38908813,4185.7,4185.5,0.721]
[1759267097696,2.38908813,4185.7,4185.6,3.522]
[1759267098430,0.001,4185.8,4185.6,3.522]
[1759267098629,0.001,4185.8,4185.7,0.6846]
[1759267099935,2.39002957,4185.8,4185.7,0.6846]
[1759267100324,2.39002957,4185.8,4185.6,2.801]
[1759267100325,2.38908665,4185.7,4185.6,2.801]
[1759267100636,2.38908665,4185.7,4185.6,3.4856]
[1759267101145,0.001,4185.8,4185.2,0.6846]
[1759267101146,2.38931498,4185.3,4185.2,0.6846]
[1759267101435,2.39006882,4185.8,4185.4,2.485]
[1759267101436,2.38920081,4185.5,4185.4,2.485]
[1759267103005,2.38937207,4185.2,4185.1,0.2446]
[1759267103208,2.38937207,4185.2,4185.1,5.9666]
[1759267104103,2.38963374,4184.8,4184.7,0.44]
[1759267104417,2.38963374,4184.8,4184.7,5.721]
[1759267105305,0.23901071,4185.6,4183.9,0.63427529]
[1759267105306,2.38987601,4184.4,4183.9,0.63427529]
[1759267105516,2.38987601,4184.4,4184.1,2.4]
[1759267106058,2.38987601,4184.4,4184.2,0.6846]
[1759267106234,0.1192,4184.6,4184.2,0.6846]
[1759267106537,0.1192,4184.6,4184.4,2.4]
[1759267106538,2.50892619,4184.6,4184.4,2.4]
[1759267106714,2.38977177,4184.5,4184.4,2.4]
[1759267106919,2.38982888,4184.4,4184.3,5.8796]
[1759267107423,2.38982888,4184.4,4184.3,5.9636]
[1759267107722,0.1192,4184.6,4184.3,5.9636]
[1759267107923,2.50895291,4184.6,4184.4,0.6846]
[1759267108235,2.50895291,4184.6,4184.5,0.6846]
[1759267109708,0.1192,4184.6,4184.5,0.6846]
[1759267109921,2.50891466,4184.6,4184.5,0.6846]
[1759267111116,0.1192,4184.6,4184.5,0.6846]
[1759267111351,2.50891466,4184.6,4184.5,0.6846]
[1759267111549,0.1192,4184.6,4184.3,5.5236]
[1759267111752,2.38981706,4184.5,4184.4,0.6846]
[1759267111924,0.1192,4184.6,4184.3,5.279]
[1759267112125,2.38982888,4184.4,4184.3,5.279]
[1759267112422,0.1192,4184.6,4184.3,5.279]
[1759267112423,2.38978628,4184.5,4184.3,5.279]
[1759267112627,2.38981394,4184.5,4184.3,5.279]
[1759267112835,2.38981394,4184.5,4184.3,5.9636]
[1759267113235,0.1192,4184.6,4184.4,0.6846]
[1759267113412,0.1192,4184.6,4184.3,5.279]
[1759267113413,2.38982888,4184.4,4184.3,5.279]
[1759267113819,2.38978633,4184.5,4184.3,5.279]
[1759267114240,0.1192,4184.6,4184.4,0.6846]
[1759267114428,0.1192,4184.6,4184.5,2.792]
[1759267114636,0.1192,4184.6,4184.5,3.4766]
[1759267119937,0.1192,4184.6,4184.5,5.86637177]
[1759267120140,0.1192,4184.6,4184.5,8.73589975]
[1759267120470,0.1192,4185.3,4185.2,2.38932007]
[1759267120633,0.1192,4185.3,4185.2,5.88981379]
[1759267120834,0.1192,4185.3,4185.2,5.86592007]
[1759267121137,0.001,4185.5,4185.2,5.86592007]
[1759267121138,0.001,4185.5,4185.4,2.38925789]
[1759267121448,0.001,4185.5,4185.4,7.60515046]
[1759267121653,0.001,4185.5,4185.4,7.58125789]
[1759267121863,0.001,4185.5,4185.4,8.26785789]
[1759267122162,0.001,4185.5,4185.4,8.90569442]
[1759267122325,0.001,4185.5,4185.4,6.51643653]
[1759267122527,0.001,4185.5,4185.4,8.90569442]
[1759267122938,0.001,4185.5,4185.4,9.45953175]
[1759267124376,0.001,4185.5,4185.4,7.07027386]
[1759267124673,0.001,4185.5,4185.4,9.45953175]
[1759267128235,0.001,4185.5,4185.4,8.82169522]
[1759267128430,0.001,4185.5,4185.4,9.67229299]